Workbook

Sheet AdresseIndirect
B1: Bonbache.fr | D1: Bonbache.fr/Excel | F1: Bonbache.fr/ExcelVBA | I1: Livres Excel | O1: Hamalibou
O2: Galls
B3: Choix 1 | C3: Feuline | E3: <== Comparer ==> | G3: Choix 2 | H3: Hamalibou | O3: Braltar
O4: Feuline
B5: Article | C5: QTE | D5: THT | G5: Article | H5: QTE | I5: THT | O5: Doeuf
B6: Ar001 | C6: =INDEX(INDIRECT($C$3&"!D3:D10"),MATCH(B6,INDIRECT($C$3&"!B3:B10"),0)) -> 41 | D6: =INDEX(INDIRECT($C$3&"!E3:E10"),MATCH(B6,INDIRECT($C$3&"!B3:B10"),0)) -> 6150 | G6: Ar001 | H6: =INDEX(INDIRECT($H$3&"!D3:D10"),MATCH(B6,INDIRECT($H$3&"!B3:B10"),0)) -> 34 | I6: =INDEX(INDIRECT($H$3&"!E3:E10"),MATCH(B6,INDIRECT($H$3&"!B3:B10"),0)) -> 5100
B7: Ar002 | C7: =INDEX(INDIRECT($C$3&"!D3:D10"),MATCH(B7,INDIRECT($C$3&"!B3:B10"),0)) -> 16 | D7: =INDEX(INDIRECT($C$3&"!E3:E10"),MATCH(B7,INDIRECT($C$3&"!B3:B10"),0)) -> 1920 | G7: Ar002 | H7: =INDEX(INDIRECT($H$3&"!D3:D10"),MATCH(B7,INDIRECT($H$3&"!B3:B10"),0)) -> 15 | I7: =INDEX(INDIRECT($H$3&"!E3:E10"),MATCH(B7,INDIRECT($H$3&"!B3:B10"),0)) -> 1800
B8: Ar003 | C8: 45 | D8: 9450 | G8: Ar003 | H8: 25 | I8: 5250
B9: Ar004 | C9: 33 | D9: 2805 | G9: Ar004 | H9: 28 | I9: 2380
B10: Ar005 | C10: 13 | D10: 650 | G10: Ar005 | H10: 37 | I10: 1850
B11: Ar006 | C11: 41 | D11: 7790 | G11: Ar006 | H11: 48 | I11: 9120
B12: Ar007 | C12: 44 | D12: 4840 | G12: Ar007 | H12: 28 | I12: 3080
B13: Ar008 | C13: 7 | D13: 2240 | G13: Ar008 | H13: 11 | I13: 3520
B14: Total | D14: =SUM(D6:D13) -> 35845 | G14: Total | I14: =SUM(I6:I13) -> 32100

Sheet Hamalibou
B2: Article | C2: PUHT | D2: QTE | E2: THT
B3: Ar005 | C3: 50 | D3: 37 | E3: =C3*D3 -> 1850
B4: Ar002 | C4: 120 | D4: 15 | E4: =C4*D4 -> 1800
B5: Ar008 | C5: 320 | D5: 11 | E5: 3520
B6: Ar004 | C6: 85 | D6: 28 | E6: 2380
B7: Ar001 | C7: 150 | D7: 34 | E7: 5100
B8: Ar006 | C8: 190 | D8: 48 | E8: 9120
B9: Ar007 | C9: 110 | D9: 28 | E9: 3080
B10: Ar003 | C10: 210 | D10: 25 | E10: 5250

Sheet Galls
B2: Article | C2: PUHT | D2: QTE | E2: THT
B3: Ar008 | C3: 320 | D3: 13 | E3: =C3*D3 -> 4160
B4: Ar002 | C4: 120 | D4: 43 | E4: =C4*D4 -> 5160
B5: Ar003 | C5: 210 | D5: 33 | E5: 6930
B6: Ar006 | C6: 190 | D6: 23 | E6: 4370
B7: Ar005 | C7: 50 | D7: 41 | E7: 2050
B8: Ar004 | C8: 85 | D8: 28 | E8: 2380
B9: Ar007 | C9: 110 | D9: 44 | E9: 4840
B10: Ar001 | C10: 150 | D10: 34 | E10: 5100

Sheet Braltar
B2: Article | C2: PUHT | D2: QTE | E2: THT
B3: Ar001 | C3: 150 | D3: 49 | E3: =C3*D3 -> 7350
B4: Ar002 | C4: 120 | D4: 18 | E4: =C4*D4 -> 2160
B5: Ar003 | C5: 210 | D5: 14 | E5: 2940
B6: Ar004 | C6: 85 | D6: 10 | E6: 850
B7: Ar005 | C7: 50 | D7: 40 | E7: 2000
B8: Ar006 | C8: 190 | D8: 43 | E8: 8170
B9: Ar007 | C9: 110 | D9: 44 | E9: 4840
B10: Ar008 | C10: 320 | D10: 9 | E10: 2880

Sheet Feuline
B2: Article | C2: PUHT | D2: QTE | E2: THT
B3: Ar002 | C3: 120 | D3: 16 | E3: =C3*D3 -> 1920
B4: Ar001 | C4: 150 | D4: 41 | E4: =C4*D4 -> 6150
B5: Ar003 | C5: 210 | D5: 45 | E5: 9450
B6: Ar005 | C6: 50 | D6: 13 | E6: 650
B7: Ar004 | C7: 85 | D7: 33 | E7: 2805
B8: Ar006 | C8: 190 | D8: 41 | E8: 7790
B9: Ar008 | C9: 320 | D9: 7 | E9: 2240
B10: Ar007 | C10: 110 | D10: 44 | E10: 4840

Sheet Doeuf
B2: Article | C2: PUHT | D2: QTE | E2: THT
B3: Ar003 | C3: 210 | D3: 19 | E3: =C3*D3 -> 3990
B4: Ar008 | C4: 320 | D4: 17 | E4: =C4*D4 -> 5440
B5: Ar001 | C5: 150 | D5: 49 | E5: 7350
B6: Ar004 | C6: 85 | D6: 40 | E6: 3400
B7: Ar005 | C7: 50 | D7: 49 | E7: 2450
B8: Ar007 | C8: 110 | D8: 34 | E8: 3740
B9: Ar006 | C9: 190 | D9: 21 | E9: 3990
B10: Ar002 | C10: 120 | D10: 32 | E10: 3840
